{"text_format":"1","workbook":"xlsx","n_sheets":1,"sheets":["جدول سير القضايا"],"not_rendered":{"charts":0,"images":0,"macros":0,"external_links":0,"defined_names":0,"comments":0,"pivot_tables":0},"unopened":[],"bounds":{"document_bytes":16777216,"sheet_cells":100000,"rows_first":2000,"rows_last":500,"rows_between":2000,"halvings":0,"cell_chars":16384,"cell_head_chars":4096},"cells_cut":0,"cells_raw":0,"read":"whole","date_system":"1900"}

{"sheet":"جدول سير القضايا","index":0,"n_rows":1000,"n_cols":52,"rows_kept":1000,"cut":false,"hidden":false,"merged":[]}
["رقم القيد"," تاريخ الإستلام","اليوم"," نوع القضية","جهة القضية"," تاريخ التصدير","اليوم"," نوع القرار","مدة بقائها في الدائرة بالأيام","  الإجراء (بدون) بالأيام",null,null,null,null,null,null,null,null,null,null,null,null,null,null,"  مدة أيام العمل","     تاريخ اليوم"]
[40900100,"2019-06-03","2019-05-25T06:20:05","حضانة","محكمة الأحوال االشخصية بمكة المكرمة","2019-06-04",null,"قرار ملاحظة",{"$f":"IF(OR(B2=\"\",F2=\"\"),\"\",DATEDIF(B2,F2,\"d\"))","v":1},{"$f":"IF(B2=\"\",\"\",IF(H2<>\"\",\"تم التصدير\",IF(TODAY()-B2=0,\"تم الاستلام داخل الدائرة\",IF(H2<>\"\",\"تم التصدير\",IF(TODAY()-B2>=10,\"لم تصدر حتى الآن\",TODAY()-B2)))))","v":"تم التصدير"},null,null,null,null,null,null,null,null,null,null,null,null,null,null,null,null,null,null," ",null,null,null,null,null,null,null,null,null,null,null,null,null,null,null,null,null,null,null,null,"قسمة تركة","قرار تأييد","المحكمة العامة بمكة المكرمة"]
[null,null,null,null,null,null,null,null,"",{"$f":"IF(B3=\"\",\"\",IF(H3<>\"\",\"تم التصدير\",IF(TODAY()-B3=0,\"تم الاستلام داخل الدائرة\",IF(H3<>\"\",\"تم التصدير\",IF(TODAY()-B3>=10,\"لم تصدر حتى الآن\",TODAY()-B3)))))","v":""},null,null,null,null,null,null,null,null,null,null,null,null,null,null,null,null,null,null,null,null,null,null,null,null,null,null,null,null,null,null,null,null,null,null,null,null,null,null,null,"وقف","قرار ملاحظة","المحكمة العامة بجدة"]
[null,null,null,null,null,null,null,null,{"$f":"IF(OR(B4=\"\",F4=\"\"),\"\",DATEDIF(B4,F4,\"d\"))","v":""},"",null,null,null,null,null,null,null,null,null,null,null,null,null,null,null,null,null,null,null,null,null,null,null,null,null,null,null,null,null,null,null,null,null,null,null,null,null,null,null,"حضانة","قرار نقض","المحكمة العامة بالطائف"]
[null,null,null,null,null,null,null,null,"","",null,null,null,null,null,null,null,null,null,null,null,null,null,null,null,null,null,null,null,null,null,null,null,null,null,null,null,null,null,null,null,null,null,null,null,null,null,null,null,"نفقة ","قرار التماس","محكمة الأحوال االشخصية بمكة المكرمة"]
[null,null,null,null,null,null,null,null,"","",null,null,null,null,null,null,null,null,null,null,null,null,null,null,null,null,null,null,null,null,null,null,null,null,null,null,null,null,null,null,null,null,null,null,null,null,null,null,null,"زيارة","قرار تأييد و نقض","محكمة الأحوال الشخصية بجدة"]
[null,null,null,null,null,null,null,null,"","",null,null,null,null,null,null,null,null,null,null,null,null,null,null,null,null,null,null,null,null,null,null,null,null,null,null,null,null,null,null,null,null,null,null,null,null,null,null,null,"عقارية","قرار تأييد وملاحظة","محكمةالأحوال الشخصية بالطائف"]
[null,null,null,null,null,null,null,null,"","",null,null,null,null,null,null,null,null,null,null,null,null,null,null,null,null,null,null,null,null,null,null,null,null,null,null,null,null,null,null,null,null,null,null,null,null,null,null,null,"تعيين ناظر وقف","عدم اختصاص(أولى)","المحكمة العامة بالليث"]
[null,null,null,null,null,null,null,null,"","",null,null,null,null,null,null,null,null,null,null,null,null,null,null,null,null,null,null,null,null,null,null,null,null,null,null,null,null,null,null,null,null,null,null,null,null,null,null,null,"محاسبة ناظر وقف","عدم اختصاص(ثالثة)","المحكمة العامة بخليص"]
[null,null,null,null,null,null,null,null,"","",null,null,null,null,null,null,null,null,null,null,null,null,null,null,null,null,null,null,null,null,null,null,null,null,null,null,null,null,null,null,null,null,null,null,null,null,null,null,null,"اخلاء عقار من غائب","تدافع","المحكمة العامة بالقنفذة"]
[null,null,null,null,null,null,null,null,"","",null,null,null,null,null,null,null,null,null,null,null,null,null,null,null,null,null,null,null,null,null,null,null,null,null,null,null,null,null,null,null,null,null,null,null,null,null,null,null,"اخلاء عقار من حاضر",null,"المحكمة العامة بالجموم"]
[null,null,null,null,null,null,null,null,"","",null,null,null,null,null,null,null,null,null,null,null,null,null,null,null,null,null,null,null,null,null,null,null,null,null,null,null,null,null,null,null,null,null,null,null,null,null,null,null,"وقف"]
[null,null,null,null,null,null,null,null,"","",null,null,null,null,null,null,null,null,null,null,null,null,null,null,null,null,null,null,null,null,null,null,null,null,null,null,null,null,null,null,null,null,null,null,null,null,null,null,null,"انقياد"]
[null,null,null,null,null,null,null,null,"","",null,null,null,null,null,null,null,null,null,null,null,null,null,null,null,null,null,null,null,null,null,null,null,null,null,null,null,null,null,null,null,null,null,null,null,null,null,null,null,"خلع"]
[null,null,null,null,null,null,null,null,"","",null,null,null,null,null,null,null,null,null,null,null,null,null,null,null,null,null,null,null,null,null,null,null,null,null,null,null,null,null,null,null,null,null,null,null,null,null,null,null,"اثبات طلاق"]
[null,null,null,null,null,null,null,null,"","",null,null,null,null,null,null,null,null,null,null,null,null,null,null,null,null,null,null,null,null,null,null,null,null,null,null,null,null,null,null,null,null,null,null,null,null,null,null,null,"تعيين ولي على قاصر"]
[null,null,null,null,null,null,null,null,"","",null,null,null,null,null,null,null,null,null,null,null,null,null,null,null,null,null,null,null,null,null,null,null,null,null,null,null,null,null,null,null,null,null,null,null,null,null,null,null,"حجر"]
[null,null,null,null,null,null,null,null,"","",null,null,null,null,null,null,null,null,null,null,null,null,null,null,null,null,null,null,null,null,null,null,null,null,null,null,null,null,null,null,null,null,null,null,null,null,null,null,null,"فسخ نكاح"]
[null,null,null,null,null,null,null,null,"","",null,null,null,null,null,null,null,null,null,null,null,null,null,null,null,null,null,null,null,null,null,null,null,null,null,null,null,null,null,null,null,null,null,null,null,null,null,null,null,"صداق"]
[null,null,null,null,null,null,null,null,"","",null,null,null,null,null,null,null,null,null,null,null,null,null,null,null,null,null,null,null,null,null,null,null,null,null,null,null,null,null,null,null,null,null,null,null,null,null,null,null,"سكن زوجة و أولاد "]
[null,null,null,null,null,null,null,null,"","",null,null,null,null,null,null,null,null,null,null,null,null,null,null,null,null,null,null,null,null,null,null,null,null,null,null,null,null,null,null,null,null,null,null,null,null,null,null,null,"عضل"]
[null,null,null,null,null,null,null,null,"","",null,null,null,null,null,null,null,null,null,null,null,null,null,null,null,null,null,null,null,null,null,null,null,null,null,null,null,null,null,null,null,null,null,null,null,null,null,null,null,"معاشرة بالمعروف"]
[null,null,null,null,null,null,null,null,"","",null,null,null,null,null,null,null,null,null,null,null,null,null,null,null,null,null,null,null,null,null,null,null,null,null,null,null,null,null,null,null,null,null,null,null,null,null,null,null,"تزويج بغير رضا"]
[null,null,null,null,null,null,null,null,"","",null,null,null,null,null,null,null,null,null,null,null,null,null,null,null,null,null,null,null,null,null,null,null,null,null,null,null,null,null,null,null,null,null,null,null,null,null,null,null,"أتعاب محاماة"]
[null,null,null,null,null,null,null,null,"","",null,null,null,null,null,null,null,null,null,null,null,null,null,null,null,null,null,null,null,null,null,null,null,null,null,null,null,null,null,null,null,null,null,null,null,null,null,null,null,"تفسير حكم"]
[null,null,null,null,null,null,null,null,"","",null,null,null,null,null,null,null,null,null,null,null,null,null,null,null,null,null,null,null,null,null,null,null,null,null,null,null,null,null,null,null,null,null,null,null,null,null,null,null,"التماس"]
[null,null,null,null,null,null,null,null,"","",null,null,null,null,null,null,null,null,null,null,null,null,null,null,null,null,null,null,null,null,null,null,null,null,null,null,null,null,null,null,null,null,null,null,null,null,null,null,null,"اعتراض على صك حصر ورثة"]
[null,null,null,null,null,null,null,null,"","",null,null,null,null,null,null,null,null,null,null,null,null,null,null,null,null,null,null,null,null,null,null,null,null,null,null,null,null,null,null,null,null,null,null,null,null,null,null,null,"مطالبة بمستندات"]
[null,null,null,null,null,null,null,null,"","",null,null,null,null,null,null,null,null,null,null,null,null,null,null,null,null,null,null,null,null,null,null,null,null,null,null,null,null,null,null,null,null,null,null,null,null,null,null,null,"عفش الزوجة"]
[null,null,null,null,null,null,null,null,"","",null,null,null,null,null,null,null,null,null,null,null,null,null,null,null,null,null,null,null,null,null,null,null,null,null,null,null,null,null,null,null,null,null,null,null,null,null,null,null,"تعطيل وقف"]
[null,null,null,null,null,null,null,null,"","",null,null,null,null,null,null,null,null,null,null,null,null,null,null,null,null,null,null,null,null,null,null,null,null,null,null,null,null,null,null,null,null,null,null,null,null,null,null,null,"نزع ولاية"]
[null,null,null,null,null,null,null,null,"","",null,null,null,null,null,null,null,null,null,null,null,null,null,null,null,null,null,null,null,null,null,null,null,null,null,null,null,null,null,null,null,null,null,null,null,null,null,null,null,"اثبات نسب"]
[null,null,null,null,null,null,null,null,"",""]
[null,null,null,null,null,null,null,null,"",""]
[null,null,null,null,null,null,null,null,"",""]
[null,null,null,null,null,null,null,null,"",""]
[null,null,null,null,null,null,null,null,"",""]
[null,null,null,null,null,null,null,null,"",""]
[null,null,null,null,null,null,null,null,"",""]
[null,null,null,null,null,null,null,null,"",""]
[null,null,null,null,null,null,null,null,"",""]
[null,null,null,null,null,null,null,null,"",""]
[null,null,null,null,null,null,null,null,"",""]
[null,null,null,null,null,null,null,null,"",""]
[null,null,null,null,null,null,null,null,"",""]
[null,null,null,null,null,null,null,null,"",""]
[null,null,null,null,null,null,null,null,"",""]
[null,null,null,null,null,null,null,null,"",""]
[null,null,null,null,null,null,null,null,"",""]
[null,null,null,null,null,null,null,null,"",""]
[null,null,null,null,null,null,null,null,{"$f":"IF(OR(B51=\"\",F51=\"\"),\"\",DATEDIF(B51,F51,\"d\"))","v":""},""]
[null,null,null,null,null,null,null,null,"",""]
[null,null,null,null,null,null,null,null,"",""]
[null,null,null,null,null,null,null,null,"",""]
[null,null,null,null,null,null,null,null,"",""]
[null,null,null,null,null,null,null,null,"",""]
[null,null,null,null,null,null,null,null,"",""]
[null,null,null,null,null,null,null,null,"",""]
[null,null,null,null,null,null,null,null,"",""]
[null,null,null,null,null,null,null,null,"",""]
[null,null,null,null,null,null,null,null,"",""]
[null,null,null,null,null,null,null,null,"",""]
[null,null,null,null,null,null,null,null,"",""]
[null,null,null,null,null,null,null,null,"",""]
[null,null,null,null,null,null,null,null,"",""]
[null,null,null,null,null,null,null,null,"",""]
[null,null,null,null,null,null,null,null,"",{"$f":"IF(B67=\"\",\"\",IF(H67<>\"\",\"تم التصدير\",IF(TODAY()-B67=0,\"تم الاستلام داخل الدائرة\",IF(H67<>\"\",\"تم التصدير\",IF(TODAY()-B67>=10,\"لم تصدر حتى الآن\",TODAY()-B67)))))","v":""}]
[null,null,null,null,null,null,null,null,"",""]
[null,null,null,null,null,null,null,null,"",""]
[null,null,null,null,null,null,null,null,"",""]
[null,null,null,null,null,null,null,null,"",""]
[null,null,null,null,null,null,null,null,"",""]
[null,null,null,null,null,null,null,null,"",""]
[null,null,null,null,null,null,null,null,"",""]
[null,null,null,null,null,null,null,null,"",""]
[null,null,null,null,null,null,null,null,"",""]
[null,null,null,null,null,null,null,null,"",""]
[null,null,null,null,null,null,null,null,"",""]
[null,null,null,null,null,null,null,null,"",""]
[null,null,null,null,null,null,null,null,"",""]
[null,null,null,null,null,null,null,null,"",""]
[null,null,null,null,null,null,null,null,"",""]
[null,null,null,null,null,null,null,null,"",""]
[null,null,null,null,null,null,null,null,"",""]
[null,null,null,null,null,null,null,null,"",""]
[null,null,null,null,null,null,null,null,"",""]
[null,null,null,null,null,null,null,null,"",""]
[null,null,null,null,null,null,null,null,"",""]
[null,null,null,null,null,null,null,null,"",""]
[null,null,null,null,null,null,null,null,"",""]
[null,null,null,null,null,null,null,null,"",""]
[null,null,null,null,null,null,null,null,"",""]
[null,null,null,null,null,null,null,null,"",""]
[null,null,null,null,null,null,null,null,"",""]
[null,null,null,null,null,null,null,null,"",""]
[null,null,null,null,null,null,null,null,"",""]
[null,null,null,null,null,null,null,null,"",""]
[null,null,null,null,null,null,null,null,"",""]
[null,null,null,null,null,null,null,null,"",""]
[null,null,null,null,null,null,null,null,"",""]
[null,null,null,null,null,null,null,null,"",""]
[null,null,null,null,null,null,null,null,"",""]
[null,null,null,null,null,null,null,null,"",""]
[null,null,null,null,null,null,null,null,"",""]
[null,null,null,null,null,null,null,null,"",""]
[null,null,null,null,null,null,null,null,"",""]
[null,null,null,null,null,null,null,null,"",""]
[null,null,null,null,null,null,null,null,"",""]
[null,null,null,null,null,null,null,null,"",""]
[null,null,null,null,null,null,null,null,"",""]
[null,null,null,null,null,null,null,null,"",""]
[null,null,null,null,null,null,null,null,"",""]
[null,null,null,null,null,null,null,null,"",""]
[null,null,null,null,null,null,null,null,"",""]
[null,null,null,null,null,null,null,null,{"$f":"IF(OR(B115=\"\",F115=\"\"),\"\",DATEDIF(B115,F115,\"d\"))","v":""},""]
[null,null,null,null,null,null,null,null,"",""]
[null,null,null,null,null,null,null,null,"",""]
[null,null,null,null,null,null,null,null,"",""]
[null,null,null,null,null,null,null,null,"",""]
[null,null,null,null,null,null,null,null,"",""]
[null,null,null,null,null,null,null,null,"",""]
[null,null,null,null,null,null,null,null,"",""]
[null,null,null,null,null,null,null,null,"",""]
[null,null,null,null,null,null,null,null,"",""]
[null,null,null,null,null,null,null,null,"",""]
[null,null,null,null,null,null,null,null,"",""]
[null,null,null,null,null,null,null,null,"",""]
[null,null,null,null,null,null,null,null,"",""]
[null,null,null,null,null,null,null,null,"",""]
[null,null,null,null,null,null,null,null,"",""]
[null,null,null,null,null,null,null,null,"",{"$f":"IF(B131=\"\",\"\",IF(H131<>\"\",\"تم التصدير\",IF(TODAY()-B131=0,\"تم الاستلام داخل الدائرة\",IF(H131<>\"\",\"تم التصدير\",IF(TODAY()-B131>=10,\"لم تصدر حتى الآن\",TODAY()-B131)))))","v":""}]
[null,null,null,null,null,null,null,null,"",""]
[null,null,null,null,null,null,null,null,"",""]
[null,null,null,null,null,null,null,null,"",""]
[null,null,null,null,null,null,null,null,"",""]
[null,null,null,null,null,null,null,null,"",""]
[null,null,null,null,null,null,null,null,"",""]
[null,null,null,null,null,null,null,null,"",""]
[null,null,null,null,null,null,null,null,"",""]
[null,null,null,null,null,null,null,null,"",""]
[null,null,null,null,null,null,null,null,"",""]
[null,null,null,null,null,null,null,null,"",""]
[null,null,null,null,null,null,null,null,"",""]
[null,null,null,null,null,null,null,null,"",""]
[null,null,null,null,null,null,null,null,"",""]
[null,null,null,null,null,null,null,null,"",""]
[null,null,null,null,null,null,null,null,"",""]
[null,null,null,null,null,null,null,null,"",""]
[null,null,null,null,null,null,null,null,"",""]
[null,null,null,null,null,null,null,null,"",""]
[null,null,null,null,null,null,null,null,"",""]
[null,null,null,null,null,null,null,null,"",""]
[null,null,null,null,null,null,null,null,"",""]
[null,null,null,null,null,null,null,null,"",""]
[null,null,null,null,null,null,null,null,"",""]
[null,null,null,null,null,null,null,null,"",""]
[null,null,null,null,null,null,null,null,"",""]
[null,null,null,null,null,null,null,null,"",""]
[null,null,null,null,null,null,null,null,"",""]
[null,null,null,null,null,null,null,null,"",""]
[null,null,null,null,null,null,null,null,"",""]
[null,null,null,null,null,null,null,null,"",""]
[null,null,null,null,null,null,null,null,"",""]
[null,null,null,null,null,null,null,null,"",""]
[null,null,null,null,null,null,null,null,"",""]
[null,null,null,null,null,null,null,null,"",""]
[null,null,null,null,null,null,null,null,"",""]
[null,null,null,null,null,null,null,null,"",""]
[null,null,null,null,null,null,null,null,"",""]
[null,null,null,null,null,null,null,null,"",""]
[null,null,null,null,null,null,null,null,"",""]
[null,null,null,null,null,null,null,null,"",""]
[null,null,null,null,null,null,null,null,"",""]
[null,null,null,null,null,null,null,null,"",""]
[null,null,null,null,null,null,null,null,"",""]
[null,null,null,null,null,null,null,null,"",""]
[null,null,null,null,null,null,null,null,"",""]
[null,null,null,null,null,null,null,null,"",""]
[null,null,null,null,null,null,null,null,{"$f":"IF(OR(B179=\"\",F179=\"\"),\"\",DATEDIF(B179,F179,\"d\"))","v":""},""]
[null,null,null,null,null,null,null,null,"",""]
[null,null,null,null,null,null,null,null,"",""]
[null,null,null,null,null,null,null,null,"",""]
[null,null,null,null,null,null,null,null,"",""]
[null,null,null,null,null,null,null,null,"",""]
[null,null,null,null,null,null,null,null,"",""]
[null,null,null,null,null,null,null,null,"",""]
[null,null,null,null,null,null,null,null,"",""]
[null,null,null,null,null,null,null,null,"",""]
[null,null,null,null,null,null,null,null,"",""]
[null,null,null,null,null,null,null,null,"",""]
[null,null,null,null,null,null,null,null,"",""]
[null,null,null,null,null,null,null,null,"",""]
[null,null,null,null,null,null,null,null,"",""]
[null,null,null,null,null,null,null,null,"",""]
[null,null,null,null,null,null,null,null,"",{"$f":"IF(B195=\"\",\"\",IF(H195<>\"\",\"تم التصدير\",IF(TODAY()-B195=0,\"تم الاستلام داخل الدائرة\",IF(H195<>\"\",\"تم التصدير\",IF(TODAY()-B195>=10,\"لم تصدر حتى الآن\",TODAY()-B195)))))","v":""}]
[null,null,null,null,null,null,null,null,"",""]
[null,null,null,null,null,null,null,null,"",""]
[null,null,null,null,null,null,null,null,"",""]
[null,null,null,null,null,null,null,null,"",""]
[null,null,null,null,null,null,null,null,"",""]
[null,null,null,null,null,null,null,null,"",""]
[null,null,null,null,null,null,null,null,"",""]
[null,null,null,null,null,null,null,null,"",""]
[null,null,null,null,null,null,null,null,"",""]
[null,null,null,null,null,null,null,null,"",""]
[null,null,null,null,null,null,null,null,"",""]
[null,null,null,null,null,null,null,null,"",""]
[null,null,null,null,null,null,null,null,"",""]
[null,null,null,null,null,null,null,null,"",""]
[null,null,null,null,null,null,null,null,"",""]
[null,null,null,null,null,null,null,null,"",""]
[null,null,null,null,null,null,null,null,"",""]
[null,null,null,null,null,null,null,null,"",""]
[null,null,null,null,null,null,null,null,"",""]
[null,null,null,null,null,null,null,null,"",""]
[null,null,null,null,null,null,null,null,"",""]
[null,null,null,null,null,null,null,null,"",""]
[null,null,null,null,null,null,null,null,"",""]
[null,null,null,null,null,null,null,null,"",""]
[null,null,null,null,null,null,null,null,"",""]
[null,null,null,null,null,null,null,null,"",""]
[null,null,null,null,null,null,null,null,"",""]
[null,null,null,null,null,null,null,null,"",""]
[null,null,null,null,null,null,null,null,"",""]
[null,null,null,null,null,null,null,null,"",""]
[null,null,null,null,null,null,null,null,"",""]
[null,null,null,null,null,null,null,null,"",""]
[null,null,null,null,null,null,null,null,"",""]
[null,null,null,null,null,null,null,null,"",""]
[null,null,null,null,null,null,null,null,"",""]
[null,null,null,null,null,null,null,null,"",""]
[null,null,null,null,null,null,null,null,"",""]
[null,null,null,null,null,null,null,null,"",""]
[null,null,null,null,null,null,null,null,"",""]
[null,null,null,null,null,null,null,null,"",""]
[null,null,null,null,null,null,null,null,"",""]
[null,null,null,null,null,null,null,null,"",""]
[null,null,null,null,null,null,null,null,"",""]
[null,null,null,null,null,null,null,null,"",""]
[null,null,null,null,null,null,null,null,"",""]
[null,null,null,null,null,null,null,null,"",""]
[null,null,null,null,null,null,null,null,"",""]
[null,null,null,null,null,null,null,null,{"$f":"IF(OR(B243=\"\",F243=\"\"),\"\",DATEDIF(B243,F243,\"d\"))","v":""},""]
[null,null,null,null,null,null,null,null,"",""]
[null,null,null,null,null,null,null,null,"",""]
[null,null,null,null,null,null,null,null,"",""]
[null,null,null,null,null,null,null,null,"",""]
[null,null,null,null,null,null,null,null,"",""]
[null,null,null,null,null,null,null,null,"",""]
[null,null,null,null,null,null,null,null,"",""]
[null,null,null,null,null,null,null,null,"",""]
[null,null,null,null,null,null,null,null,"",""]
[null,null,null,null,null,null,null,null,"",""]
[null,null,null,null,null,null,null,null,"",""]
[null,null,null,null,null,null,null,null,"",""]
[null,null,null,null,null,null,null,null,"",""]
[null,null,null,null,null,null,null,null,"",""]
[null,null,null,null,null,null,null,null,"",""]
[null,null,null,null,null,null,null,null,"",{"$f":"IF(B259=\"\",\"\",IF(H259<>\"\",\"تم التصدير\",IF(TODAY()-B259=0,\"تم الاستلام داخل الدائرة\",IF(H259<>\"\",\"تم التصدير\",IF(TODAY()-B259>=10,\"لم تصدر حتى الآن\",TODAY()-B259)))))","v":""}]
[null,null,null,null,null,null,null,null,"",""]
[null,null,null,null,null,null,null,null,"",""]
[null,null,null,null,null,null,null,null,"",""]
[null,null,null,null,null,null,null,null,"",""]
[null,null,null,null,null,null,null,null,"",""]
[null,null,null,null,null,null,null,null,"",""]
[null,null,null,null,null,null,null,null,"",""]
[null,null,null,null,null,null,null,null,"",""]
[null,null,null,null,null,null,null,null,"",""]
[null,null,null,null,null,null,null,null,"",""]
[null,null,null,null,null,null,null,null,"",""]
[null,null,null,null,null,null,null,null,"",""]
[null,null,null,null,null,null,null,null,"",""]
[null,null,null,null,null,null,null,null,"",""]
[null,null,null,null,null,null,null,null,"",""]
[null,null,null,null,null,null,null,null,"",""]
[null,null,null,null,null,null,null,null,"",""]
[null,null,null,null,null,null,null,null,"",""]
[null,null,null,null,null,null,null,null,"",""]
[null,null,null,null,null,null,null,null,"",""]
[null,null,null,null,null,null,null,null,"",""]
[null,null,null,null,null,null,null,null,"",""]
[null,null,null,null,null,null,null,null,"",""]
[null,null,null,null,null,null,null,null,"",""]
[null,null,null,null,null,null,null,null,"",""]
[null,null,null,null,null,null,null,null,"",""]
[null,null,null,null,null,null,null,null,"",""]
[null,null,null,null,null,null,null,null,"",""]
[null,null,null,null,null,null,null,null,"",""]
[null,null,null,null,null,null,null,null,"",""]
[null,null,null,null,null,null,null,null,"",""]
[null,null,null,null,null,null,null,null,"",""]
[null,null,null,null,null,null,null,null,"",""]
[null,null,null,null,null,null,null,null,"",""]
[null,null,null,null,null,null,null,null,"",""]
[null,null,null,null,null,null,null,null,"",""]
[null,null,null,null,null,null,null,null,"",""]
[null,null,null,null,null,null,null,null,"",""]
[null,null,null,null,null,null,null,null,"",""]
[null,null,null,null,null,null,null,null,"",""]
[null,null,null,null,null,null,null,null,"",""]
[null,null,null,null,null,null,null,null,"",""]
[null,null,null,null,null,null,null,null,"",""]
[null,null,null,null,null,null,null,null,"",""]
[null,null,null,null,null,null,null,null,"",""]
[null,null,null,null,null,null,null,null,"",""]
[null,null,null,null,null,null,null,null,"",""]
[null,null,null,null,null,null,null,null,{"$f":"IF(OR(B307=\"\",F307=\"\"),\"\",DATEDIF(B307,F307,\"d\"))","v":""},""]
[null,null,null,null,null,null,null,null,"",""]
[null,null,null,null,null,null,null,null,"",""]
[null,null,null,null,null,null,null,null,"",""]
[null,null,null,null,null,null,null,null,"",""]
[null,null,null,null,null,null,null,null,"",""]
[null,null,null,null,null,null,null,null,"",""]
[null,null,null,null,null,null,null,null,"",""]
[null,null,null,null,null,null,null,null,"",""]
[null,null,null,null,null,null,null,null,"",""]
[null,null,null,null,null,null,null,null,"",""]
[null,null,null,null,null,null,null,null,"",""]
[null,null,null,null,null,null,null,null,"",""]
[null,null,null,null,null,null,null,null,"",""]
[null,null,null,null,null,null,null,null,"",""]
[null,null,null,null,null,null,null,null,"",""]
[null,null,null,null,null,null,null,null,"",{"$f":"IF(B323=\"\",\"\",IF(H323<>\"\",\"تم التصدير\",IF(TODAY()-B323=0,\"تم الاستلام داخل الدائرة\",IF(H323<>\"\",\"تم التصدير\",IF(TODAY()-B323>=10,\"لم تصدر حتى الآن\",TODAY()-B323)))))","v":""}]
[null,null,null,null,null,null,null,null,"",""]
[null,null,null,null,null,null,null,null,"",""]
[null,null,null,null,null,null,null,null,"",""]
[null,null,null,null,null,null,null,null,"",""]
[null,null,null,null,null,null,null,null,"",""]
[null,null,null,null,null,null,null,null,"",""]
[null,null,null,null,null,null,null,null,"",""]
[null,null,null,null,null,null,null,null,"",""]
[null,null,null,null,null,null,null,null,"",""]
[null,null,null,null,null,null,null,null,"",""]
[null,null,null,null,null,null,null,null,"",""]
[null,null,null,null,null,null,null,null,"",""]
[null,null,null,null,null,null,null,null,"",""]
[null,null,null,null,null,null,null,null,"",""]
[null,null,null,null,null,null,null,null,"",""]
[null,null,null,null,null,null,null,null,"",""]
[null,null,null,null,null,null,null,null,"",""]
[null,null,null,null,null,null,null,null,"",""]
[null,null,null,null,null,null,null,null,"",""]
[null,null,null,null,null,null,null,null,"",""]
[null,null,null,null,null,null,null,null,"",""]
[null,null,null,null,null,null,null,null,"",""]
[null,null,null,null,null,null,null,null,"",""]
[null,null,null,null,null,null,null,null,"",""]
[null,null,null,null,null,null,null,null,"",""]
[null,null,null,null,null,null,null,null,"",""]
[null,null,null,null,null,null,null,null,"",""]
[null,null,null,null,null,null,null,null,"",""]
[null,null,null,null,null,null,null,null,"",""]
[null,null,null,null,null,null,null,null,"",""]
[null,null,null,null,null,null,null,null,"",""]
[null,null,null,null,null,null,null,null,"",""]
[null,null,null,null,null,null,null,null,"",""]
[null,null,null,null,null,null,null,null,"",""]
[null,null,null,null,null,null,null,null,"",""]
[null,null,null,null,null,null,null,null,"",""]
[null,null,null,null,null,null,null,null,"",""]
[null,null,null,null,null,null,null,null,"",""]
[null,null,null,null,null,null,null,null,"",""]
[null,null,null,null,null,null,null,null,"",""]
[null,null,null,null,null,null,null,null,"",""]
[null,null,null,null,null,null,null,null,"",""]
[null,null,null,null,null,null,null,null,"",""]
[null,null,null,null,null,null,null,null,"",""]
[null,null,null,null,null,null,null,null,"",""]
[null,null,null,null,null,null,null,null,"",""]
[null,null,null,null,null,null,null,null,"",""]
[null,null,null,null,null,null,null,null,{"$f":"IF(OR(B371=\"\",F371=\"\"),\"\",DATEDIF(B371,F371,\"d\"))","v":""},""]
[null,null,null,null,null,null,null,null,"",""]
[null,null,null,null,null,null,null,null,"",""]
[null,null,null,null,null,null,null,null,"",""]
[null,null,null,null,null,null,null,null,"",""]
[null,null,null,null,null,null,null,null,"",""]
[null,null,null,null,null,null,null,null,"",""]
[null,null,null,null,null,null,null,null,"",""]
[null,null,null,null,null,null,null,null,"",""]
[null,null,null,null,null,null,null,null,"",""]
[null,null,null,null,null,null,null,null,"",""]
[null,null,null,null,null,null,null,null,"",""]
[null,null,null,null,null,null,null,null,"",""]
[null,null,null,null,null,null,null,null,"",""]
[null,null,null,null,null,null,null,null,"",""]
[null,null,null,null,null,null,null,null,"",""]
[null,null,null,null,null,null,null,null,"",{"$f":"IF(B387=\"\",\"\",IF(H387<>\"\",\"تم التصدير\",IF(TODAY()-B387=0,\"تم الاستلام داخل الدائرة\",IF(H387<>\"\",\"تم التصدير\",IF(TODAY()-B387>=10,\"لم تصدر حتى الآن\",TODAY()-B387)))))","v":""}]
[null,null,null,null,null,null,null,null,"",""]
[null,null,null,null,null,null,null,null,"",""]
[null,null,null,null,null,null,null,null,"",""]
[null,null,null,null,null,null,null,null,"",""]
[null,null,null,null,null,null,null,null,"",""]
[null,null,null,null,null,null,null,null,"",""]
[null,null,null,null,null,null,null,null,"",""]
[null,null,null,null,null,null,null,null,"",""]
[null,null,null,null,null,null,null,null,"",""]
[null,null,null,null,null,null,null,null,"",""]
[null,null,null,null,null,null,null,null,"",""]
[null,null,null,null,null,null,null,null,"",""]
[null,null,null,null,null,null,null,null,"",""]
[null,null,null,null,null,null,null,null,"",""]
[null,null,null,null,null,null,null,null,"",""]
[null,null,null,null,null,null,null,null,"",""]
[null,null,null,null,null,null,null,null,"",""]
[null,null,null,null,null,null,null,null,"",""]
[null,null,null,null,null,null,null,null,"",""]
[null,null,null,null,null,null,null,null,"",""]
[null,null,null,null,null,null,null,null,"",""]
[null,null,null,null,null,null,null,null,"",""]
[null,null,null,null,null,null,null,null,"",""]
[null,null,null,null,null,null,null,null,"",""]
[null,null,null,null,null,null,null,null,"",""]
[null,null,null,null,null,null,null,null,"",""]
[null,null,null,null,null,null,null,null,"",""]
[null,null,null,null,null,null,null,null,"",""]
[null,null,null,null,null,null,null,null,"",""]
[null,null,null,null,null,null,null,null,"",""]
[null,null,null,null,null,null,null,null,"",""]
[null,null,null,null,null,null,null,null,"",""]
[null,null,null,null,null,null,null,null,"",""]
[null,null,null,null,null,null,null,null,"",""]
[null,null,null,null,null,null,null,null,"",""]
[null,null,null,null,null,null,null,null,"",""]
[null,null,null,null,null,null,null,null,"",""]
[null,null,null,null,null,null,null,null,"",""]
[null,null,null,null,null,null,null,null,"",""]
[null,null,null,null,null,null,null,null,"",""]
[null,null,null,null,null,null,null,null,"",""]
[null,null,null,null,null,null,null,null,"",""]
[null,null,null,null,null,null,null,null,"",""]
[null,null,null,null,null,null,null,null,"",""]
[null,null,null,null,null,null,null,null,"",""]
[null,null,null,null,null,null,null,null,"",""]
[null,null,null,null,null,null,null,null,"",""]
[null,null,null,null,null,null,null,null,{"$f":"IF(OR(B435=\"\",F435=\"\"),\"\",DATEDIF(B435,F435,\"d\"))","v":""},""]
[null,null,null,null,null,null,null,null,"",""]
[null,null,null,null,null,null,null,null,"",""]
[null,null,null,null,null,null,null,null,"",""]
[null,null,null,null,null,null,null,null,"",""]
[null,null,null,null,null,null,null,null,"",""]
[null,null,null,null,null,null,null,null,"",""]
[null,null,null,null,null,null,null,null,"",""]
[null,null,null,null,null,null,null,null,"",""]
[null,null,null,null,null,null,null,null,"",""]
[null,null,null,null,null,null,null,null,"",""]
[null,null,null,null,null,null,null,null,"",""]
[null,null,null,null,null,null,null,null,"",""]
[null,null,null,null,null,null,null,null,"",""]
[null,null,null,null,null,null,null,null,"",""]
[null,null,null,null,null,null,null,null,"",""]
[null,null,null,null,null,null,null,null,"",{"$f":"IF(B451=\"\",\"\",IF(H451<>\"\",\"تم التصدير\",IF(TODAY()-B451=0,\"تم الاستلام داخل الدائرة\",IF(H451<>\"\",\"تم التصدير\",IF(TODAY()-B451>=10,\"لم تصدر حتى الآن\",TODAY()-B451)))))","v":""}]
[null,null,null,null,null,null,null,null,"",""]
[null,null,null,null,null,null,null,null,"",""]
[null,null,null,null,null,null,null,null,"",""]
[null,null,null,null,null,null,null,null,"",""]
[null,null,null,null,null,null,null,null,"",""]
[null,null,null,null,null,null,null,null,"",""]
[null,null,null,null,null,null,null,null,"",""]
[null,null,null,null,null,null,null,null,"",""]
[null,null,null,null,null,null,null,null,"",""]
[null,null,null,null,null,null,null,null,"",""]
[null,null,null,null,null,null,null,null,"",""]
[null,null,null,null,null,null,null,null,"",""]
[null,null,null,null,null,null,null,null,"",""]
[null,null,null,null,null,null,null,null,"",""]
[null,null,null,null,null,null,null,null,"",""]
[null,null,null,null,null,null,null,null,"",""]
[null,null,null,null,null,null,null,null,"",""]
[null,null,null,null,null,null,null,null,"",""]
[null,null,null,null,null,null,null,null,"",""]
[null,null,null,null,null,null,null,null,"",""]
[null,null,null,null,null,null,null,null,"",""]
[null,null,null,null,null,null,null,null,"",""]
[null,null,null,null,null,null,null,null,"",""]
[null,null,null,null,null,null,null,null,"",""]
[null,null,null,null,null,null,null,null,"",""]
[null,null,null,null,null,null,null,null,"",""]
[null,null,null,null,null,null,null,null,"",""]
[null,null,null,null,null,null,null,null,"",""]
[null,null,null,null,null,null,null,null,"",""]
[null,null,null,null,null,null,null,null,"",""]
[null,null,null,null,null,null,null,null,"",""]
[null,null,null,null,null,null,null,null,"",""]
[null,null,null,null,null,null,null,null,"",""]
[null,null,null,null,null,null,null,null,"",""]
[null,null,null,null,null,null,null,null,"",""]
[null,null,null,null,null,null,null,null,"",""]
[null,null,null,null,null,null,null,null,"",""]
[null,null,null,null,null,null,null,null,"",""]
[null,null,null,null,null,null,null,null,"",""]
[null,null,null,null,null,null,null,null,"",""]
[null,null,null,null,null,null,null,null,"",""]
[null,null,null,null,null,null,null,null,"",""]
[null,null,null,null,null,null,null,null,"",""]
[null,null,null,null,null,null,null,null,"",""]
[null,null,null,null,null,null,null,null,"",""]
[null,null,null,null,null,null,null,null,"",""]
[null,null,null,null,null,null,null,null,"",""]
[null,null,null,null,null,null,null,null,{"$f":"IF(OR(B499=\"\",F499=\"\"),\"\",DATEDIF(B499,F499,\"d\"))","v":""},""]
[null,null,null,null,null,null,null,null,"",""]
[null,null,null,null,null,null,null,null,"",""]
[null,null,null,null,null,null,null,null,"",""]
[null,null,null,null,null,null,null,null,"",""]
[null,null,null,null,null,null,null,null,"",""]
[null,null,null,null,null,null,null,null,"",""]
[null,null,null,null,null,null,null,null,"",""]
[null,null,null,null,null,null,null,null,"",""]
[null,null,null,null,null,null,null,null,"",""]
[null,null,null,null,null,null,null,null,"",""]
[null,null,null,null,null,null,null,null,"",""]
[null,null,null,null,null,null,null,null,"",""]
[null,null,null,null,null,null,null,null,"",""]
[null,null,null,null,null,null,null,null,"",""]
[null,null,null,null,null,null,null,null,"",""]
[null,null,null,null,null,null,null,null,"",{"$f":"IF(B515=\"\",\"\",IF(H515<>\"\",\"تم التصدير\",IF(TODAY()-B515=0,\"تم الاستلام داخل الدائرة\",IF(H515<>\"\",\"تم التصدير\",IF(TODAY()-B515>=10,\"لم تصدر حتى الآن\",TODAY()-B515)))))","v":""}]
[null,null,null,null,null,null,null,null,"",""]
[null,null,null,null,null,null,null,null,"",""]
[null,null,null,null,null,null,null,null,"",""]
[null,null,null,null,null,null,null,null,"",""]
[null,null,null,null,null,null,null,null,"",""]
[null,null,null,null,null,null,null,null,"",""]
[null,null,null,null,null,null,null,null,"",""]
[null,null,null,null,null,null,null,null,"",""]
[null,null,null,null,null,null,null,null,"",""]
[null,null,null,null,null,null,null,null,"",""]
[null,null,null,null,null,null,null,null,"",""]
[null,null,null,null,null,null,null,null,"",""]
[null,null,null,null,null,null,null,null,"",""]
[null,null,null,null,null,null,null,null,"",""]
[null,null,null,null,null,null,null,null,"",""]
[null,null,null,null,null,null,null,null,"",""]
[null,null,null,null,null,null,null,null,"",""]
[null,null,null,null,null,null,null,null,"",""]
[null,null,null,null,null,null,null,null,"",""]
[null,null,null,null,null,null,null,null,"",""]
[null,null,null,null,null,null,null,null,"",""]
[null,null,null,null,null,null,null,null,"",""]
[null,null,null,null,null,null,null,null,"",""]
[null,null,null,null,null,null,null,null,"",""]
[null,null,null,null,null,null,null,null,"",""]
[null,null,null,null,null,null,null,null,"",""]
[null,null,null,null,null,null,null,null,"",""]
[null,null,null,null,null,null,null,null,"",""]
[null,null,null,null,null,null,null,null,"",""]
[null,null,null,null,null,null,null,null,"",""]
[null,null,null,null,null,null,null,null,"",""]
[null,null,null,null,null,null,null,null,"",""]
[null,null,null,null,null,null,null,null,"",""]
[null,null,null,null,null,null,null,null,"",""]
[null,null,null,null,null,null,null,null,"",""]
[null,null,null,null,null,null,null,null,"",""]
[null,null,null,null,null,null,null,null,"",""]
[null,null,null,null,null,null,null,null,"",""]
[null,null,null,null,null,null,null,null,"",""]
[null,null,null,null,null,null,null,null,"",""]
[null,null,null,null,null,null,null,null,"",""]
[null,null,null,null,null,null,null,null,"",""]
[null,null,null,null,null,null,null,null,"",""]
[null,null,null,null,null,null,null,null,"",""]
[null,null,null,null,null,null,null,null,"",""]
[null,null,null,null,null,null,null,null,"",""]
[null,null,null,null,null,null,null,null,"",""]
[null,null,null,null,null,null,null,null,{"$f":"IF(OR(B563=\"\",F563=\"\"),\"\",DATEDIF(B563,F563,\"d\"))","v":""},""]
[null,null,null,null,null,null,null,null,"",""]
[null,null,null,null,null,null,null,null,"",""]
[null,null,null,null,null,null,null,null,"",""]
[null,null,null,null,null,null,null,null,"",""]
[null,null,null,null,null,null,null,null,"",""]
[null,null,null,null,null,null,null,null,"",""]
[null,null,null,null,null,null,null,null,"",""]
[null,null,null,null,null,null,null,null,"",""]
[null,null,null,null,null,null,null,null,"",""]
[null,null,null,null,null,null,null,null,"",""]
[null,null,null,null,null,null,null,null,"",""]
[null,null,null,null,null,null,null,null,"",""]
[null,null,null,null,null,null,null,null,"",""]
[null,null,null,null,null,null,null,null,"",""]
[null,null,null,null,null,null,null,null,"",""]
[null,null,null,null,null,null,null,null,"",{"$f":"IF(B579=\"\",\"\",IF(H579<>\"\",\"تم التصدير\",IF(TODAY()-B579=0,\"تم الاستلام داخل الدائرة\",IF(H579<>\"\",\"تم التصدير\",IF(TODAY()-B579>=10,\"لم تصدر حتى الآن\",TODAY()-B579)))))","v":""}]
[null,null,null,null,null,null,null,null,"",""]
[null,null,null,null,null,null,null,null,"",""]
[null,null,null,null,null,null,null,null,"",""]
[null,null,null,null,null,null,null,null,"",""]
[null,null,null,null,null,null,null,null,"",""]
[null,null,null,null,null,null,null,null,"",""]
[null,null,null,null,null,null,null,null,"",""]
[null,null,null,null,null,null,null,null,"",""]
[null,null,null,null,null,null,null,null,"",""]
[null,null,null,null,null,null,null,null,"",""]
[null,null,null,null,null,null,null,null,"",""]
[null,null,null,null,null,null,null,null,"",""]
[null,null,null,null,null,null,null,null,"",""]
[null,null,null,null,null,null,null,null,"",""]
[null,null,null,null,null,null,null,null,"",""]
[null,null,null,null,null,null,null,null,"",""]
[null,null,null,null,null,null,null,null,"",""]
[null,null,null,null,null,null,null,null,"",""]
[null,null,null,null,null,null,null,null,"",""]
[null,null,null,null,null,null,null,null,"",""]
[null,null,null,null,null,null,null,null,"",""]
[null,null,null,null,null,null,null,null,"",""]
[null,null,null,null,null,null,null,null,"",""]
[null,null,null,null,null,null,null,null,"",""]
[null,null,null,null,null,null,null,null,"",""]
[null,null,null,null,null,null,null,null,"",""]
[null,null,null,null,null,null,null,null,"",""]
[null,null,null,null,null,null,null,null,"",""]
[null,null,null,null,null,null,null,null,"",""]
[null,null,null,null,null,null,null,null,"",""]
[null,null,null,null,null,null,null,null,"",""]
[null,null,null,null,null,null,null,null,"",""]
[null,null,null,null,null,null,null,null,"",""]
[null,null,null,null,null,null,null,null,"",""]
[null,null,null,null,null,null,null,null,"",""]
[null,null,null,null,null,null,null,null,"",""]
[null,null,null,null,null,null,null,null,"",""]
[null,null,null,null,null,null,null,null,"",""]
[null,null,null,null,null,null,null,null,"",""]
[null,null,null,null,null,null,null,null,"",""]
[null,null,null,null,null,null,null,null,"",""]
[null,null,null,null,null,null,null,null,"",""]
[null,null,null,null,null,null,null,null,"",""]
[null,null,null,null,null,null,null,null,"",""]
[null,null,null,null,null,null,null,null,"",""]
[null,null,null,null,null,null,null,null,"",""]
[null,null,null,null,null,null,null,null,"",""]
[null,null,null,null,null,null,null,null,{"$f":"IF(OR(B627=\"\",F627=\"\"),\"\",DATEDIF(B627,F627,\"d\"))","v":""},""]
[null,null,null,null,null,null,null,null,"",""]
[null,null,null,null,null,null,null,null,"",""]
[null,null,null,null,null,null,null,null,"",""]
[null,null,null,null,null,null,null,null,"",""]
[null,null,null,null,null,null,null,null,"",""]
[null,null,null,null,null,null,null,null,"",""]
[null,null,null,null,null,null,null,null,"",""]
[null,null,null,null,null,null,null,null,"",""]
[null,null,null,null,null,null,null,null,"",""]
[null,null,null,null,null,null,null,null,"",""]
[null,null,null,null,null,null,null,null,"",""]
[null,null,null,null,null,null,null,null,"",""]
[null,null,null,null,null,null,null,null,"",""]
[null,null,null,null,null,null,null,null,"",""]
[null,null,null,null,null,null,null,null,"",""]
[null,null,null,null,null,null,null,null,"",{"$f":"IF(B643=\"\",\"\",IF(H643<>\"\",\"تم التصدير\",IF(TODAY()-B643=0,\"تم الاستلام داخل الدائرة\",IF(H643<>\"\",\"تم التصدير\",IF(TODAY()-B643>=10,\"لم تصدر حتى الآن\",TODAY()-B643)))))","v":""}]
[null,null,null,null,null,null,null,null,"",""]
[null,null,null,null,null,null,null,null,"",""]
[null,null,null,null,null,null,null,null,"",""]
[null,null,null,null,null,null,null,null,"",""]
[null,null,null,null,null,null,null,null,"",""]
[null,null,null,null,null,null,null,null,"",""]
[null,null,null,null,null,null,null,null,"",""]
[null,null,null,null,null,null,null,null,"",""]
[null,null,null,null,null,null,null,null,"",""]
[null,null,null,null,null,null,null,null,"",""]
[null,null,null,null,null,null,null,null,"",""]
[null,null,null,null,null,null,null,null,"",""]
[null,null,null,null,null,null,null,null,"",""]
[null,null,null,null,null,null,null,null,"",""]
[null,null,null,null,null,null,null,null,"",""]
[null,null,null,null,null,null,null,null,"",""]
[null,null,null,null,null,null,null,null,"",""]
[null,null,null,null,null,null,null,null,"",""]
[null,null,null,null,null,null,null,null,"",""]
[null,null,null,null,null,null,null,null,"",""]
[null,null,null,null,null,null,null,null,"",""]
[null,null,null,null,null,null,null,null,"",""]
[null,null,null,null,null,null,null,null,"",""]
[null,null,null,null,null,null,null,null,"",""]
[null,null,null,null,null,null,null,null,"",""]
[null,null,null,null,null,null,null,null,"",""]
[null,null,null,null,null,null,null,null,"",""]
[null,null,null,null,null,null,null,null,"",""]
[null,null,null,null,null,null,null,null,"",""]
[null,null,null,null,null,null,null,null,"",""]
[null,null,null,null,null,null,null,null,"",""]
[null,null,null,null,null,null,null,null,"",""]
[null,null,null,null,null,null,null,null,"",""]
[null,null,null,null,null,null,null,null,"",""]
[null,null,null,null,null,null,null,null,"",""]
[null,null,null,null,null,null,null,null,"",""]
[null,null,null,null,null,null,null,null,"",""]
[null,null,null,null,null,null,null,null,"",""]
[null,null,null,null,null,null,null,null,"",""]
[null,null,null,null,null,null,null,null,"",""]
[null,null,null,null,null,null,null,null,"",""]
[null,null,null,null,null,null,null,null,"",""]
[null,null,null,null,null,null,null,null,"",""]
[null,null,null,null,null,null,null,null,"",""]
[null,null,null,null,null,null,null,null,"",""]
[null,null,null,null,null,null,null,null,"",""]
[null,null,null,null,null,null,null,null,"",""]
[null,null,null,null,null,null,null,null,{"$f":"IF(OR(B691=\"\",F691=\"\"),\"\",DATEDIF(B691,F691,\"d\"))","v":""},""]
[null,null,null,null,null,null,null,null,"",""]
[null,null,null,null,null,null,null,null,"",""]
[null,null,null,null,null,null,null,null,"",""]
[null,null,null,null,null,null,null,null,"",""]
[null,null,null,null,null,null,null,null,"",""]
[null,null,null,null,null,null,null,null,"",""]
[null,null,null,null,null,null,null,null,"",""]
[null,null,null,null,null,null,null,null,"",""]
[null,null,null,null,null,null,null,null,"",""]
[null,null,null,null,null,null,null,null,"",""]
[null,null,null,null,null,null,null,null,"",""]
[null,null,null,null,null,null,null,null,"",""]
[null,null,null,null,null,null,null,null,"",""]
[null,null,null,null,null,null,null,null,"",""]
[null,null,null,null,null,null,null,null,"",""]
[null,null,null,null,null,null,null,null,"",{"$f":"IF(B707=\"\",\"\",IF(H707<>\"\",\"تم التصدير\",IF(TODAY()-B707=0,\"تم الاستلام داخل الدائرة\",IF(H707<>\"\",\"تم التصدير\",IF(TODAY()-B707>=10,\"لم تصدر حتى الآن\",TODAY()-B707)))))","v":""}]
[null,null,null,null,null,null,null,null,"",""]
[null,null,null,null,null,null,null,null,"",""]
[null,null,null,null,null,null,null,null,"",""]
[null,null,null,null,null,null,null,null,"",""]
[null,null,null,null,null,null,null,null,"",""]
[null,null,null,null,null,null,null,null,"",""]
[null,null,null,null,null,null,null,null,"",""]
[null,null,null,null,null,null,null,null,"",""]
[null,null,null,null,null,null,null,null,"",""]
[null,null,null,null,null,null,null,null,"",""]
[null,null,null,null,null,null,null,null,"",""]
[null,null,null,null,null,null,null,null,"",""]
[null,null,null,null,null,null,null,null,"",""]
[null,null,null,null,null,null,null,null,"",""]
[null,null,null,null,null,null,null,null,"",""]
[null,null,null,null,null,null,null,null,"",""]
[null,null,null,null,null,null,null,null,"",""]
[null,null,null,null,null,null,null,null,"",""]
[null,null,null,null,null,null,null,null,"",""]
[null,null,null,null,null,null,null,null,"",""]
[null,null,null,null,null,null,null,null,"",""]
[null,null,null,null,null,null,null,null,"",""]
[null,null,null,null,null,null,null,null,"",""]
[null,null,null,null,null,null,null,null,"",""]
[null,null,null,null,null,null,null,null,"",""]
[null,null,null,null,null,null,null,null,"",""]
[null,null,null,null,null,null,null,null,"",""]
[null,null,null,null,null,null,null,null,"",""]
[null,null,null,null,null,null,null,null,"",""]
[null,null,null,null,null,null,null,null,"",""]
[null,null,null,null,null,null,null,null,"",""]
[null,null,null,null,null,null,null,null,"",""]
[null,null,null,null,null,null,null,null,"",""]
[null,null,null,null,null,null,null,null,"",""]
[null,null,null,null,null,null,null,null,"",""]
[null,null,null,null,null,null,null,null,"",""]
[null,null,null,null,null,null,null,null,"",""]
[null,null,null,null,null,null,null,null,"",""]
[null,null,null,null,null,null,null,null,"",""]
[null,null,null,null,null,null,null,null,"",""]
[null,null,null,null,null,null,null,null,"",""]
[null,null,null,null,null,null,null,null,"",""]
[null,null,null,null,null,null,null,null,"",""]
[null,null,null,null,null,null,null,null,"",""]
[null,null,null,null,null,null,null,null,"",""]
[null,null,null,null,null,null,null,null,"",""]
[null,null,null,null,null,null,null,null,"",""]
[null,null,null,null,null,null,null,null,{"$f":"IF(OR(B755=\"\",F755=\"\"),\"\",DATEDIF(B755,F755,\"d\"))","v":""},""]
[null,null,null,null,null,null,null,null,"",""]
[null,null,null,null,null,null,null,null,"",""]
[null,null,null,null,null,null,null,null,"",""]
[null,null,null,null,null,null,null,null,"",""]
[null,null,null,null,null,null,null,null,"",""]
[null,null,null,null,null,null,null,null,"",""]
[null,null,null,null,null,null,null,null,"",""]
[null,null,null,null,null,null,null,null,"",""]
[null,null,null,null,null,null,null,null,"",""]
[null,null,null,null,null,null,null,null,"",""]
[null,null,null,null,null,null,null,null,"",""]
[null,null,null,null,null,null,null,null,"",""]
[null,null,null,null,null,null,null,null,"",""]
[null,null,null,null,null,null,null,null,"",""]
[null,null,null,null,null,null,null,null,"",""]
[null,null,null,null,null,null,null,null,"",{"$f":"IF(B771=\"\",\"\",IF(H771<>\"\",\"تم التصدير\",IF(TODAY()-B771=0,\"تم الاستلام داخل الدائرة\",IF(H771<>\"\",\"تم التصدير\",IF(TODAY()-B771>=10,\"لم تصدر حتى الآن\",TODAY()-B771)))))","v":""}]
[null,null,null,null,null,null,null,null,"",""]
[null,null,null,null,null,null,null,null,"",""]
[null,null,null,null,null,null,null,null,"",""]
[null,null,null,null,null,null,null,null,"",""]
[null,null,null,null,null,null,null,null,"",""]
[null,null,null,null,null,null,null,null,"",""]
[null,null,null,null,null,null,null,null,"",""]
[null,null,null,null,null,null,null,null,"",""]
[null,null,null,null,null,null,null,null,"",""]
[null,null,null,null,null,null,null,null,"",""]
[null,null,null,null,null,null,null,null,"",""]
[null,null,null,null,null,null,null,null,"",""]
[null,null,null,null,null,null,null,null,"",""]
[null,null,null,null,null,null,null,null,"",""]
[null,null,null,null,null,null,null,null,"",""]
[null,null,null,null,null,null,null,null,"",""]
[null,null,null,null,null,null,null,null,"",""]
[null,null,null,null,null,null,null,null,"",""]
[null,null,null,null,null,null,null,null,"",""]
[null,null,null,null,null,null,null,null,"",""]
[null,null,null,null,null,null,null,null,"",""]
[null,null,null,null,null,null,null,null,"",""]
[null,null,null,null,null,null,null,null,"",""]
[null,null,null,null,null,null,null,null,"",""]
[null,null,null,null,null,null,null,null,"",""]
[null,null,null,null,null,null,null,null,"",""]
[null,null,null,null,null,null,null,null,"",""]
[null,null,null,null,null,null,null,null,"",""]
[null,null,null,null,null,null,null,null,"",""]
[null,null,null,null,null,null,null,null,"",""]
[null,null,null,null,null,null,null,null,"",""]
[null,null,null,null,null,null,null,null,"",""]
[null,null,null,null,null,null,null,null,"",""]
[null,null,null,null,null,null,null,null,"",""]
[null,null,null,null,null,null,null,null,"",""]
[null,null,null,null,null,null,null,null,"",""]
[null,null,null,null,null,null,null,null,"",""]
[null,null,null,null,null,null,null,null,"",""]
[null,null,null,null,null,null,null,null,"",""]
[null,null,null,null,null,null,null,null,"",""]
[null,null,null,null,null,null,null,null,"",""]
[null,null,null,null,null,null,null,null,"",""]
[null,null,null,null,null,null,null,null,"",""]
[null,null,null,null,null,null,null,null,"",""]
[null,null,null,null,null,null,null,null,"",""]
[null,null,null,null,null,null,null,null,"",""]
[null,null,null,null,null,null,null,null,"",""]
[null,null,null,null,null,null,null,null,{"$f":"IF(OR(B819=\"\",F819=\"\"),\"\",DATEDIF(B819,F819,\"d\"))","v":""},""]
[null,null,null,null,null,null,null,null,"",""]
[null,null,null,null,null,null,null,null,"",""]
[null,null,null,null,null,null,null,null,"",""]
[null,null,null,null,null,null,null,null,"",""]
[null,null,null,null,null,null,null,null,"",""]
[null,null,null,null,null,null,null,null,"",""]
[null,null,null,null,null,null,null,null,"",""]
[null,null,null,null,null,null,null,null,"",""]
[null,null,null,null,null,null,null,null,"",""]
[null,null,null,null,null,null,null,null,"",""]
[null,null,null,null,null,null,null,null,"",""]
[null,null,null,null,null,null,null,null,"",""]
[null,null,null,null,null,null,null,null,"",""]
[null,null,null,null,null,null,null,null,"",""]
[null,null,null,null,null,null,null,null,"",""]
[null,null,null,null,null,null,null,null,"",{"$f":"IF(B835=\"\",\"\",IF(H835<>\"\",\"تم التصدير\",IF(TODAY()-B835=0,\"تم الاستلام داخل الدائرة\",IF(H835<>\"\",\"تم التصدير\",IF(TODAY()-B835>=10,\"لم تصدر حتى الآن\",TODAY()-B835)))))","v":""}]
[null,null,null,null,null,null,null,null,"",""]
[null,null,null,null,null,null,null,null,"",""]
[null,null,null,null,null,null,null,null,"",""]
[null,null,null,null,null,null,null,null,"",""]
[null,null,null,null,null,null,null,null,"",""]
[null,null,null,null,null,null,null,null,"",""]
[null,null,null,null,null,null,null,null,"",""]
[null,null,null,null,null,null,null,null,"",""]
[null,null,null,null,null,null,null,null,"",""]
[null,null,null,null,null,null,null,null,"",""]
[null,null,null,null,null,null,null,null,"",""]
[null,null,null,null,null,null,null,null,"",""]
[null,null,null,null,null,null,null,null,"",""]
[null,null,null,null,null,null,null,null,"",""]
[null,null,null,null,null,null,null,null,"",""]
[null,null,null,null,null,null,null,null,"",""]
[null,null,null,null,null,null,null,null,"",""]
[null,null,null,null,null,null,null,null,"",""]
[null,null,null,null,null,null,null,null,"",""]
[null,null,null,null,null,null,null,null,"",""]
[null,null,null,null,null,null,null,null,"",""]
[null,null,null,null,null,null,null,null,"",""]
[null,null,null,null,null,null,null,null,"",""]
[null,null,null,null,null,null,null,null,"",""]
[null,null,null,null,null,null,null,null,"",""]
[null,null,null,null,null,null,null,null,"",""]
[null,null,null,null,null,null,null,null,"",""]
[null,null,null,null,null,null,null,null,"",""]
[null,null,null,null,null,null,null,null,"",""]
[null,null,null,null,null,null,null,null,"",""]
[null,null,null,null,null,null,null,null,"",""]
[null,null,null,null,null,null,null,null,"",""]
[null,null,null,null,null,null,null,null,"",""]
[null,null,null,null,null,null,null,null,"",""]
[null,null,null,null,null,null,null,null,"",""]
[null,null,null,null,null,null,null,null,"",""]
[null,null,null,null,null,null,null,null,"",""]
[null,null,null,null,null,null,null,null,"",""]
[null,null,null,null,null,null,null,null,"",""]
[null,null,null,null,null,null,null,null,"",""]
[null,null,null,null,null,null,null,null,"",""]
[null,null,null,null,null,null,null,null,"",""]
[null,null,null,null,null,null,null,null,"",""]
[null,null,null,null,null,null,null,null,"",""]
[null,null,null,null,null,null,null,null,"",""]
[null,null,null,null,null,null,null,null,"",""]
[null,null,null,null,null,null,null,null,"",""]
[null,null,null,null,null,null,null,null,{"$f":"IF(OR(B883=\"\",F883=\"\"),\"\",DATEDIF(B883,F883,\"d\"))","v":""},""]
[null,null,null,null,null,null,null,null,"",""]
[null,null,null,null,null,null,null,null,"",""]
[null,null,null,null,null,null,null,null,"",""]
[null,null,null,null,null,null,null,null,"",""]
[null,null,null,null,null,null,null,null,"",""]
[null,null,null,null,null,null,null,null,"",""]
[null,null,null,null,null,null,null,null,"",""]
[null,null,null,null,null,null,null,null,"",""]
[null,null,null,null,null,null,null,null,"",""]
[null,null,null,null,null,null,null,null,"",""]
[null,null,null,null,null,null,null,null,"",""]
[null,null,null,null,null,null,null,null,"",""]
[null,null,null,null,null,null,null,null,"",""]
[null,null,null,null,null,null,null,null,"",""]
[null,null,null,null,null,null,null,null,"",""]
[null,null,null,null,null,null,null,null,"",{"$f":"IF(B899=\"\",\"\",IF(H899<>\"\",\"تم التصدير\",IF(TODAY()-B899=0,\"تم الاستلام داخل الدائرة\",IF(H899<>\"\",\"تم التصدير\",IF(TODAY()-B899>=10,\"لم تصدر حتى الآن\",TODAY()-B899)))))","v":""}]
[null,null,null,null,null,null,null,null,"",""]
[null,null,null,null,null,null,null,null,"",""]
[null,null,null,null,null,null,null,null,"",""]
[null,null,null,null,null,null,null,null,"",""]
[null,null,null,null,null,null,null,null,"",""]
[null,null,null,null,null,null,null,null,"",""]
[null,null,null,null,null,null,null,null,"",""]
[null,null,null,null,null,null,null,null,"",""]
[null,null,null,null,null,null,null,null,"",""]
[null,null,null,null,null,null,null,null,"",""]
[null,null,null,null,null,null,null,null,"",""]
[null,null,null,null,null,null,null,null,"",""]
[null,null,null,null,null,null,null,null,"",""]
[null,null,null,null,null,null,null,null,"",""]
[null,null,null,null,null,null,null,null,"",""]
[null,null,null,null,null,null,null,null,"",""]
[null,null,null,null,null,null,null,null,"",""]
[null,null,null,null,null,null,null,null,"",""]
[null,null,null,null,null,null,null,null,"",""]
[null,null,null,null,null,null,null,null,"",""]
[null,null,null,null,null,null,null,null,"",""]
[null,null,null,null,null,null,null,null,"",""]
[null,null,null,null,null,null,null,null,"",""]
[null,null,null,null,null,null,null,null,"",""]
[null,null,null,null,null,null,null,null,"",""]
[null,null,null,null,null,null,null,null,"",""]
[null,null,null,null,null,null,null,null,"",""]
[null,null,null,null,null,null,null,null,"",""]
[null,null,null,null,null,null,null,null,"",""]
[null,null,null,null,null,null,null,null,"",""]
[null,null,null,null,null,null,null,null,"",""]
[null,null,null,null,null,null,null,null,"",""]
[null,null,null,null,null,null,null,null,"",""]
[null,null,null,null,null,null,null,null,"",""]
[null,null,null,null,null,null,null,null,"",""]
[null,null,null,null,null,null,null,null,"",""]
[null,null,null,null,null,null,null,null,"",""]
[null,null,null,null,null,null,null,null,"",""]
[null,null,null,null,null,null,null,null,"",""]
[null,null,null,null,null,null,null,null,"",""]
[null,null,null,null,null,null,null,null,"",""]
[null,null,null,null,null,null,null,null,"",""]
[null,null,null,null,null,null,null,null,"",""]
[null,null,null,null,null,null,null,null,"",""]
[null,null,null,null,null,null,null,null,"",""]
[null,null,null,null,null,null,null,null,"",""]
[null,null,null,null,null,null,null,null,"",""]
[null,null,null,null,null,null,null,null,{"$f":"IF(OR(B947=\"\",F947=\"\"),\"\",DATEDIF(B947,F947,\"d\"))","v":""},""]
[null,null,null,null,null,null,null,null,"",""]
[null,null,null,null,null,null,null,null,"",""]
[null,null,null,null,null,null,null,null,"",""]
[null,null,null,null,null,null,null,null,"",""]
[null,null,null,null,null,null,null,null,"",""]
[null,null,null,null,null,null,null,null,"",""]
[null,null,null,null,null,null,null,null,"",""]
[null,null,null,null,null,null,null,null,"",""]
[null,null,null,null,null,null,null,null,"",""]
[null,null,null,null,null,null,null,null,"",""]
[null,null,null,null,null,null,null,null,"",""]
[null,null,null,null,null,null,null,null,"",""]
[null,null,null,null,null,null,null,null,"",""]
[null,null,null,null,null,null,null,null,"",""]
[null,null,null,null,null,null,null,null,"",""]
[null,null,null,null,null,null,null,null,"",{"$f":"IF(B963=\"\",\"\",IF(H963<>\"\",\"تم التصدير\",IF(TODAY()-B963=0,\"تم الاستلام داخل الدائرة\",IF(H963<>\"\",\"تم التصدير\",IF(TODAY()-B963>=10,\"لم تصدر حتى الآن\",TODAY()-B963)))))","v":""}]
[null,null,null,null,null,null,null,null,"",""]
[null,null,null,null,null,null,null,null,"",""]
[null,null,null,null,null,null,null,null,"",""]
[null,null,null,null,null,null,null,null,"",""]
[null,null,null,null,null,null,null,null,"",""]
[null,null,null,null,null,null,null,null,"",""]
[null,null,null,null,null,null,null,null,"",""]
[null,null,null,null,null,null,null,null,"",""]
[null,null,null,null,null,null,null,null,"",""]
[null,null,null,null,null,null,null,null,"",""]
[null,null,null,null,null,null,null,null,"",""]
[null,null,null,null,null,null,null,null,"",""]
[null,null,null,null,null,null,null,null,"",""]
[null,null,null,null,null,null,null,null,"",""]
[null,null,null,null,null,null,null,null,"",""]
[null,null,null,null,null,null,null,null,"",""]
[null,null,null,null,null,null,null,null,"",""]
[null,null,null,null,null,null,null,null,"",""]
[null,null,null,null,null,null,null,null,"",""]
[null,null,null,null,null,null,null,null,{"$f":"IF(OR(B983=\"\",F983=\"\"),\"\",DATEDIF(B983,F983,\"d\"))","v":""},""]
[null,null,null,null,null,null,null,null,"",""]
[null,null,null,null,null,null,null,null,"",""]
[null,null,null,null,null,null,null,null,"",""]
[null,null,null,null,null,null,null,null,"",""]
[null,null,null,null,null,null,null,null,"",""]
[null,null,null,null,null,null,null,null,"",""]
[null,null,null,null,null,null,null,null,"",""]
[null,null,null,null,null,null,null,null,"",""]
[null,null,null,null,null,null,null,null,"",""]
[null,null,null,null,null,null,null,null,"",""]
[null,null,null,null,null,null,null,null,"",""]
[null,null,null,null,null,null,null,null,"",""]
[null,null,null,null,null,null,null,null,"",""]
[null,null,null,null,null,null,null,null,"",""]
[null,null,null,null,null,null,null,null,"",""]
[null,null,null,null,null,null,null,null,"",""]
[null,null,null,null,null,null,null,null,"",""]